Cogmind - Beta 14 *** ADVENTURER MODE // 2024.10.02 @ 10:00:10 // Winter2019/RPGLIKE Player: Gallgagger Result: Self-destructed Performance ------------- Evolutions (0) 0 Regions Visited (4) 800 Robots Destroyed (34) 170 Value Destroyed (967) 967 Prototype IDs (12) 240 Alien Tech Used (0) 0 Bonus (30) 30 TOTAL SCORE: 2207 Bonus ------- Follower Combat Kills 30 Cogmind --------- Core Integrity 432/600 Matter 300/300 Energy 310/310 System Corruption 0% Temperature Cool (0) Movement Flying (40) Location -7/Recycling Parts ------- > --- POWER (2) -------- Ion Engine Light Nuclear Core > --- PROPULSION (4) --- Flightbrick > --- UTILITY (3+3) ---- Experimental Sensor Array Signal Interpreter > --- WEAPON (2) ------- Beamcaster Dirty Datajack > --- INVENTORY (1) ---- Makeshift System Restoration Module Peak State ------------ > --- POWER ------------ Ion Engine Light Nuclear Core > --- PROPULSION ------- Flightbrick > --- UTILITY ---------- Experimental Sensor Array Signal Interpreter > --- WEAPON ----------- Beamcaster Dirty Datajack > --- INVENTORY -------- Makeshift System Restoration Module [Rating: 61] Favorites ----------- Power Ion Engine Engine Ion Engine Power Core Light Nuclear Core Propulsion Flight Unit Wheel Compact Wheel Flight Unit Flight Unit Utility Signal Interpreter Device Experimental Sensor Array Processor Signal Interpreter Weapon Small Laser Energy Gun Small Laser Energy Cannon Subdweller Beam Cannon Special Melee Weapon Dirty Datajack Build | -11 -10 -10 -10 -7 ------- Run | Yrd Mat Min Sub Rec Slots Evolved 7 | 4 . 1 2 . Power 1 | 1 . . . . Propulsion 3 | 1 . 1 1 . Utility 2 | 1 . . 1 . Weapon 1 | 1 . . . . Parts Attached 26 | 6 9 4 7 . Power 3 | 2 . 1 . . Engine 2 | 2 . . . . Core 1 | . . 1 . . Reactor . | . . . . . Propulsion 10 | 2 4 2 2 . Treads . | . . . . . Leg . | . . . . . Wheel 2 | 2 . . . . Hover . | . . . . . Flight 8 | . 4 2 2 . Utility 4 | . 3 1 . . Device 3 | . 2 1 . . Storage . | . . . . . Processor 1 | . 1 . . . Hackware . | . . . . . Protection . | . . . . . Artifact . | . . . . . Weapon 9 | 2 2 . 5 . Energy Gun 7 | 2 2 . 3 . Energy Cannon 1 | . . . 1 . Ballistic Gun . | . . . . . Ballistic Cannon . | . . . . . Launcher . | . . . . . Special Weapon . | . . . . . Impact Weapon . | . . . . . Slashing Weapon . | . . . . . Piercing Weapon . | . . . . . Special Melee Weapon 1 | . . . 1 . Unidentified Prototypes 2 | . . 1 1 . Parts Lost . | . . . . . Power . | . . . . . Propulsion . | . . . . . Utility . | . . . . . Weapon . | . . . . . Highest Loss Streak . | . . . . . To Critical Strikes . | . . . . . Average Slot Usage (%) 79 | . 90 99 64 . Engine 14 | . 25 20 7 . Core 4 | . . 2 7 . Wheel 1 | . 5 . . . Flight 21 | . 19 28 17 . Device 8 | . 3 11 7 . Processor 9 | . 11 11 7 . Energy Gun 14 | . 24 23 6 . Energy Cannon 1 | . . . 2 . Special Melee Weapon 3 | . . . 6 . Peak Build Rating 61 | 6 9 20 61 . Average Rating 29 | 5 7 16 46 . On Entrance 19 | . 6 9 20 61 Naked Turns . | . . . . . Heaviest Build 20 | 13 15 15 20 . Greatest Support 29 | 26 26 17 29 . Greatest Overweight (x) 3 | . 3 1 . . Average Overweight (x) . | . . . . . Largest Inventory Capacity 1 | . . 1 1 . Average Capacity . | . . . 1 . Most Carried 1 | . . 1 1 . Average Carried . | . . . . . Final Capacity 1 | . . 1 1 1 Final Carried 1 | . . 1 1 1 Class Distribution -------------------- 78% | Hacker-Mutant 18% | Hacker-Sprinter 3% | Mutant Dominant Class ---------------- Hacker-Mutant | -10/Materials Hacker-Mutant | -10/Mines Hacker-Mutant | -10/Subcaves Hacker-Mutant | -7/Recycling Resources | -11 -10 -10 -10 -7 ----------- Run | Yrd Mat Min Sub Rec Matter Collected 460 | 260 90 40 70 . Remotely . | . . . . . Salvage Created 1326 | . 400 286 640 . Parts 72 | . 11 17 44 . Haulers Intercepted 2 | . 2 . . . Recyclers Shooed . | . . . . . Parts Field Recycled . | . . . . . Retrieved Matter . | . . . . . Parts Self-Destructed 17 | . . . 17 . Prevented . | . . . . . Kills | -11 -10 -10 -10 -7 ------- Run | Yrd Mat Min Sub Rec Combat Hostiles Destroyed 30 | . 6 10 14 . Guns 21 | . 6 10 5 . Cannons 8 | . . . 8 . Classes Destroyed 6 | . 4 . 2 . Hauler 2 | . 2 . . . Recycler 1 | . 1 . . . Turret 1 | . . . 1 . Swarmer 9 | . 3 6 . . Grunt 7 | . 3 4 . . Subdweller 14 | . . . 14 . Best Kill Streak 3 | . 3 3 2 . Combat Bots Only 3 | . 3 3 2 . Max Kills in Single Turn 1 | . 1 1 1 . Gunslinging . | . . . . . Exploded . | . . . . . Melee . | . . . . . Uniques/NPCs Destroyed . | . . . . . Combat | -11 -10 -10 -10 -7 -------- Run | Yrd Mat Min Sub Rec Hostile Shots Fired 152 | . 18 34 100 . Missed 57 | . 7 9 41 . Damage Taken 1239 | . 86 211 942 . Core 1000 | . 71 180 749 . Absorbed by Shields . | . . . . . Redirected to Core 804 | . 43 96 665 . Ignored by Resistances 358 | . 28 66 264 . Core Remaining (%) 100 | 100 . . . . Volleys Fired 203 | . 32 20 151 . Largest 2 | . 2 2 2 . Hottest 105 | . 90 105 105 . Shots Fired 271 | . 62 40 169 . Gun 206 | . 62 40 104 . Cannon 65 | . . . 65 . Launcher . | . . . . . Special . | . . . . . Kinetic . | . . . . . Thermal 271 | . 62 40 169 . Explosive . | . . . . . Electromagnetic . | . . . . . Robot Hit Streak 26 | . 17 12 26 . Robot Miss Streak 3 | . 2 3 1 . Penetration Max . | . . . . . Secondary Targets 2 | . 1 . 1 . Max Gunslinging Chain 1 | . 1 . 1 . Shots Hit Robots 173 | . 46 31 96 . Core Hits 59 | . 16 15 28 . Critical Kills 1 | . . . 1 . Critical Parts Destroyed . | . . . . . Critical Strikes 2 | . . 1 1 . Burn 1 | . . 1 . . Meltdown 1 | . . . 1 . Melee Attacks . | . . . . . Impact . | . . . . . Slashing . | . . . . . Piercing . | . . . . . Sneak Attacks . | . . . . . Combat Hostiles . | . . . . . Follow-up Attacks . | . . . . . Damage Inflicted 2791 | . 555 417 1819 . Guns 2054 | . 555 417 1082 . Cannons 737 | . . . 737 . Explosions . | . . . . . Melee . | . . . . . Ramming . | . . . . . Kinetic . | . . . . . Thermal 2791 | . 555 417 1819 . Explosive . | . . . . . Electromagnetic . | . . . . . Impact . | . . . . . Slashing . | . . . . . Piercing . | . . . . . Highest Corruption . | . . . . . Average Corruption . | . . . . . Corruption Purged . | . . . . . Corruption Blocked . | . . . . . Overload Shots . | . . . . . Overflow Damage . | . . . . . Projectiles . | . . . . . Explosions . | . . . . . Melee . | . . . . . Knockbacks . | . . . . . Impact . | . . . . . Kinetic . | . . . . . Secondary . | . . . . . Self-Inflicted Damage . | . . . . . Shots . | . . . . . Rammed . | . . . . . Targets Rammed . | . . . . . Kicked . | . . . . . Crushed . | . . . . . Highest Temperature 392 | . 392 14 . . Average Temperature 147 | . 148 14 . . Received Heat Transfer 291 | . 36 135 120 . Effects 1 | . 1 . . . Shutdowns 1 | . 1 . . . Siege Activations . | . . . . . Robots Corrupted . | . . . . . Combat Hostiles . | . . . . . Parts Fried . | . . . . . Impact Corruptions . | . . . . . Robots Melted 1 | . . . 1 . Combat Hostiles 1 | . . . 1 . Parts Melted 8 | . 3 2 3 . Heat Transferred 5673 | . 1499 1054 3120 . Parts Sabotaged . | . . . . . Parts Stolen . | . . . . . Parts Stripped . | . . . . . Power Chain Reactions . | . . . . . Alert | -11 -10 -10 -10 -7 ------- Run | Yrd Mat Min Sub Rec Peak Influence 231 | . 231 144 . . Initial 9 | . . 9 . . Average 66 | . 95 53 . . Maximum Alert Level 1 | . 1 . . . Low Security (%) 95 | 100 88 100 . . Level 1 4 | . 11 . . . Level 2 . | . . . . . Level 3 . | . . . . . Level 4 . | . . . . . Level 5 . | . . . . . High Security . | . . . . . Max Security . | . . . . . Squads Dispatched . | . . . . . Investigation . | . . . . . Extermination . | . . . . . Reinforcement . | . . . . . Assault . | . . . . . Garrison . | . . . . . Intercept . | . . . . . Searches Triggered . | . . . . . Construction Impeded . | . . . . . Haulers Reinforced . | . . . . . Active Scanning Responses . | . . . . . Cargo Convoy Interrupts . | . . . . . Stealth | -11 -10 -10 -10 -7 --------- Run | Yrd Mat Min Sub Rec Distress Signals 1 | . 1 . . . Communications Jammed . | . . . . . Distress Signals . | . . . . . Times Spotted 46 | . 12 10 24 . Peak Tracking Total 6 | . 5 3 6 . Tactical Retreats 2 | . 1 . 1 . Traps | -11 -10 -10 -10 -7 ------- Run | Yrd Mat Min Sub Rec Traps Triggered . | . . . . . Indirectly . | . . . . . Trap Hack Attempts . | . . . . . Triggered . | . . . . . Disarmed . | . . . . . Reprogrammed . | . . . . . Reused . | . . . . . Traps Extracted . | . . . . . Installed . | . . . . . Triggered . | . . . . . Machines | -11 -10 -10 -10 -7 ---------- Run | Yrd Mat Min Sub Rec Machines Disabled 1 | . . . 1 . Max in Single Turn 1 | . . . 1 . Machines Repaired . | . . . . . Machines Dismantled . | . . . . . Machines Sabotaged . | . . . . . Overloaded Fab Kills . | . . . . . Hacking | -11 -10 -10 -10 -7 --------- Run | Yrd Mat Min Sub Rec Machines Accessed 6 | . 5 . 1 . Terminals 5 | . 5 . . . Fabricators . | . . . . . Repair Stations . | . . . . . Recycling Units . | . . . . . Scanalyzers . | . . . . . Garrison Access . | . . . . . Total Hacks 27 | . 18 . 9 . Successful 21 | . 12 . 9 . Failed 6 | . 6 . . . Catastrophic . | . . . . . Database Lockouts . | . . . . . Manual 16 | . 16 . . . Terminals 18 | . 18 . . . Fabricators . | . . . . . Repair Stations . | . . . . . Recycling Units . | . . . . . Scanalyzers . | . . . . . Garrison Access . | . . . . . Terminal Hacks 15 | . 6 . 9 . Record 8 | . . . 8 . Part Schematic 1 | . 1 . . . Branch Access Points 2 | . 2 . . . Emergency Access Points 1 | . 1 . . . Machine Index 1 | . 1 . . . Zone Layout 1 | . 1 . . . Derelict Proto ID Bank 1 | . . . 1 . Fabricator Hacks . | . . . . . Repair Station Hacks . | . . . . . Recycling Unit Hacks . | . . . . . Scanalyzer . | . . . . . Garrison Access Hacks . | . . . . . Unauthorized Hacks 6 | . 6 . . . Terminals 6 | . 6 . . . Botnet 5 | . 5 . . . Skim 1 | . 1 . . . Fabricators . | . . . . . Repair Stations . | . . . . . Recycling Units . | . . . . . Scanalyzers . | . . . . . Garrison Access . | . . . . . Data Cores Recovered . | . . . . . Used . | . . . . . Hacking Detections 4 | . 4 . . . Full Trace Events . | . . . . . Feedback Events . | . . . . . Feedback Blocked . | . . . . . Robot Schematics Acquired . | . . . . . Robots Built . | . . . . . Authchips . | . . . . . Time . | . . . . . Total Robot Build Rating . | . . . . . Part Schematics Acquired 1 | . 1 . . . Parts Built . | . . . . . Authchips . | . . . . . Time . | . . . . . Total Part Build Rating . | . . . . . Parts Repaired . | . . . . . Time . | . . . . . Parts Recycled . | . . . . . Recycled Matter . | . . . . . Retrieved Matter . | . . . . . Retrieved Components . | . . . . . Parts Scanalyzed . | . . . . . Part Schematics Acquired . | . . . . . Parts Damaged . | . . . . . Bothacking | -11 -10 -10 -10 -7 ------------ Run | Yrd Mat Min Sub Rec Used RIF Installer . | . . . . . Robots Hacked . | . . . . . Non-combat . | . . . . . Combat . | . . . . . Robot Hacks Applied . | . . . . . Relay Couplers Released . | . . . . . Fabnet Peak Effective % . | . . . . . Robots Rewired . | . . . . . Allies Hacked . | . . . . . Hacks Repelled . | . . . . . Allies | -11 -10 -10 -10 -7 -------- Run | Yrd Mat Min Sub Rec Total Allies 3 | . . 3 . . Largest Group 3 | . . 3 2 . Highest-Rated Group 40 | . . 40 23 . Highest-Rated Ally 16 | . . 16 15 . Total Orders . | . . . . . Ally Attacks 11 | . . 1 10 . Total Damage 114 | . . . 114 . Kills 1 | . . . 1 . Allies Corrupted . | . . . . . Allies Melted . | . . . . . Intel | -11 -10 -10 -10 -7 ------- Run | Yrd Mat Min Sub Rec Robot Analysis Total . | . . . . . Derelict Logs Recovered 5 | . . 2 3 . Drone Launches . | . . . . . Drone Recoveries . | . . . . . Exploration | -11 -10 -10 -10 -7 ------------- Run | Yrd Mat Min Sub Rec Turns Passed 2616 | 58 481 744 1333 . Spaces Moved 3810 | 47 462 1002 2299 . Core 497 | 1 139 357 . . Treads . | . . . . . Legs . | . . . . . Wheels 135 | 46 89 . . . Hover . | . . . . . Flight 3178 | . 234 645 2299 . Fastest Speed 31 | 50 37 34 31 . Average Speed 46 | 88 67 57 36 . Slowest Speed 285 | 90 285 100 40 . Overloaded Moves . | . . . . . Propulsion Burnouts . | . . . . . Robots Hopped 13 | . 4 9 . . Cave-ins Triggered . | . . . . . Exploration Rate (%) 56 | 5 78 99 97 3 Regions Visited 4 Branch Regions 3 Pre-discovered Areas 2 | . . 1 1 . Known Exits Taken 3 | . 1 1 1 . Unknown Exits Taken 1 | 1 . . . . Scrap Searched 24 | . . 1 23 . Spaces Dug 18 | . . . 18 . Terrain Destroyed 20 | . . . 20 . Melee . | . . . . . Projectile 20 | . . . 20 . AOE . | . . . . . Terrain Rammed . | . . . . . Walls Destroyed . | . . . . . Machines Disabled . | . . . . . Actions | -11 -10 -10 -10 -7 --------- Run | Yrd Mat Min Sub Rec Total 4366 | 60 564 1119 2623 . Wait 279 | 8 60 95 116 . Move 3780 | 46 453 983 2298 . Hop 13 | . 4 9 . . Pick Up 2 | . . 1 1 . Fast Attach 14 | 6 4 1 3 . Attach 1 | . . . 1 . Detach 1 | . . . 1 . Swap 11 | . 5 3 3 . Drop 10 | . 3 1 6 . Fire 203 | . 32 20 151 . Melee . | . . . . . Ram . | . . . . . Kick . | . . . . . Crush . | . . . . . Escape Stasis . | . . . . . Rewire . | . . . . . Trap . | . . . . . Miscellaneous 52 | . 3 6 43 . Route ------- -11/Scrapyard -10/Materials (discovered 4 exits: *Mat x2 / *Min x2) -10/Mines (discovered 4 exits: *Mat x2 / *Exi / *Sub) -10/Subcaves (discovered 3 exits: *Mat x2 / *Rec) -7/Recycling History --------- Turn | Location | Event 5 | -11/Scrapyard | Upgraded with Power slot (x1) 5 | -11/Scrapyard | Upgraded with Propulsion slot (x1) 5 | -11/Scrapyard | Upgraded with Utility slot (x1) 5 | -11/Scrapyard | Upgraded with Weapon slot (x1) 23 | -11/Scrapyard | Discovered new exit (range 13) 59 | -11/Scrapyard | Entered Materials 110 | -10/Materials | Identified exit to Mines 141 | -10/Materials | Discovered new exit (range 16) 303 | -10/Materials | Discovered new exit (range 16) 380 | -10/Materials | Build established: Hacker-Mutant 511 | -10/Materials | Identified exit to Materials 540 | -10/Materials | Entered Mines 562 | -10/Mines | Reached level 2 661 | -10/Mines | Found a damaged Exp. Sensor Array with a note attached 663 | -10/Mines | Found Prototype Device 663 | -10/Mines | Identified Exp. Sensor Array 920 | -10/Mines | Discovered exit to Materials (range 12) 939 | -10/Mines | Upgraded with Propulsion slot (x1) 971 | -10/Mines | Received a Rocket Launcher from a helpful Derelict 993 | -10/Mines | Discovered exit to Materials (range 10) 994 | -10/Mines | Learned Materials machine intel 1029 | -10/Mines | Deemed a non-threat by the Exiles lab entrance 1029 | -10/Mines | Discovered new exit (range 5) 1030 | -10/Mines | Identified exit to Exiles 1111 | -10/Mines | Discovered new exit (range 3) 1112 | -10/Mines | Identified exit to Subcaves 1147 | -10/Mines | Assisted by bots powering up and referring to "LRC-V3" 1284 | -10/Mines | Entered Subcaves 1284 | -10/Subcaves | Accompanied by 2 allies 1286 | -10/Subcaves | Reached level 3 1286 | -10/Subcaves | Upgraded with Utility slot (x1) 1292 | -10/Subcaves | Upgraded with Propulsion slot (x1) 1319 | -10/Subcaves | Shifting Twisted Machinery released Scrap Shield 1320 | -10/Subcaves | Learned location of Zion (-6) 1326 | -10/Subcaves | Ambushed by swarm of Subdwellers 1510 | -10/Subcaves | A swath of the cavern ceiling suddenly collapsed 1556 | -10/Subcaves | Discovered new exit (range 7) 1570 | -10/Subcaves | Identified exit to Materials 1592 | -10/Subcaves | Build established: Hacker-Sprinter 1605 | -10/Subcaves | Shifting Twisted Machinery released Sub. Machine Gun 1726 | -10/Subcaves | Shifting Twisted Machinery released Scrap Shield 1734 | -10/Subcaves | Disturbed a concealed Subdweller 1744 | -10/Subcaves | Shifting Twisted Machinery released Sub. Monowheel 1761 | -10/Subcaves | Visited 4L-MR0's lab 1762 | -10/Subcaves | Learned location of 1 exit from Materials 1763 | -10/Subcaves | Learned Materials emergency access door positions 1768 | -10/Subcaves | Found Prototype Flight Unit 1768 | -10/Subcaves | Identified Flightbrick 1769 | -10/Subcaves | Attached Flightbrick, gained temporary slots: Utility x3 1796 | -10/Subcaves | Discovered exit to Materials (range 10) 1833 | -10/Subcaves | Ambushed by Subdweller buried in earth 1855 | -10/Subcaves | Ambushed by Subdweller buried in earth 2070 | -10/Subcaves | Build established: Hacker-Mutant 2194 | -10/Subcaves | Core integrity fell below 50% 2272 | -10/Subcaves | Shifting Twisted Machinery released Sub. Machine Gun 2288 | -10/Subcaves | Discovered new exit (range 10) 2290 | -10/Subcaves | Shifting Twisted Machinery released Mak. System Restoration Module 2536 | -10/Subcaves | Identified exit to Recycling 2617 | -10/Subcaves | Entered Recycling 2617 | -7/Recycling | Accompanied by 1 ally 2617 | -7/Recycling | Self-destructed Last Messages --------------- 02195_ 95-1KF(R) destroyed. Sub. Machine Gun falls loose from the Twisted Machinery. 02288_ EXIT=FOUND Mak. System Restoration Module falls loose from the Twisted Machinery. 02290_ Dropped Broken Sub. Laser. 02291_ Acquired Mak. System Restoration Module. 02302_ Autobeam Turret destroyed. 02303_ Machine disabled. 02308_ FO-NM4(g) destroyed. 02314_ Autobeam Turret destroyed. 02322_ Used Protomatter to restore core integrity (+171, depleted) 02370_ Acquired Beamcaster. 02380_ Acquired 10 matter. 02476_ JP-11X(u) builds Twisted Machinery. 02536_ EXIT=IDENTIFIED: RECYCLING LOCATION=RECYCLING GOAL=ESCAPE Map ----- +----------------------------------------------------+ | | | ???????????????????????????? | | ???????????????????????????? | | ???????????????????????????? | | ???????????????????????????? | | ???????????????????????????? | | ???????????????????????????? | | ???????????????????????????? | | ???????????????????????????? | | ???????????????????????????? | | ???????????????????????????? | | ???????????????????????????? | | ???????????????????????????? | | ???????????????????????????? | | ???????????????????????????? | | ???????????????????????????? | | ???????????????????????????? | | ???????????????????????????? | | ???????????????????????????? | | ???????????????????????????? | | ???????????????????????????? | | ???????????????????????????? | | ???????????????????????????? | | ?#####?????????????????????? | | ?# g#?????????????????????? | | ?# @ #?????????????????????? | | #Y #?????????????????????? | | ## #?????????????????????? | | ?# #?????????????????????? | | ?# +?????????????????????? | | ?# #?????????????????????? | | ?# #?????????????????????? | | ?# #?????????????????????? | | ?# #?????????????????????? | | ?# #?????????????????????? | | ?# #?????????????????????? | | ?# #?????????????????????? | | ?# #?????????????????????? | | ?? ??????????????????????? | | ?? ??????????????????????? | | ?? ??????????????????????? | | ???????????????????????????? | | ???????????????????????????? | | ???????????????????????????? | | ???????????????????????????? | | ???????????????????????????? | | ???????????????????????????? | | ???????????????????????????? | | ???????????????????????????? | | ???????????????????????????? | +----------------------------------------------------+ Best States ------------- Heat Dissipation 61 Energy Generation 19 Energy Capacity 400 Matter Stores 300 Matter Capacity 300 Sight Range 16 Robot Scan Range 20 Terrain Scan Density 10 Resistance: KI 20 Resistance: TH 20 Resistance: EX 20 Resistance: EM 20 Resistance: I 20 Resistance: S 20 Resistance: P 20 Evasion (%) 63 Offensive Hacking 20 Defensive Hacking 10 Item Schematics ----------------- Seismic Detector | -10/Materials | Hacked Robot Schematics ------------------ None Fabricated ------------ Nothing Alien Tech Used ----------------- None Achievements -------------- None Challenges ------------ None RPGLIKE | -11 -10 -10 -10 -7 --------- Run | Yrd Mat Min Sub Rec Levels Raised 2 | . . 1 1 . XP Earned 7640 | 4000 810 1715 1115 . XP Spent 6950 | 2000 2000 1050 1900 . Upgrades 19 | 4 11 2 2 . Power Slot 1 | 1 . . . . Propulsion Slot 3 | 1 . 1 1 . Utility Slot 2 | 1 . . 1 . Weapon Slot 1 | 1 . . . . Heat Dissipation 6 | . 6 . . . Mass Support 1 | . 1 . . . Inventory Capacity 1 | . . 1 . . Hack Attack % 2 | . 2 . . . Hack Defense % 2 | . 2 . . . Protomatter Created 383 | . 13 54 316 . Integrity Restored 1040 | . 35 132 873 . Core 832 | . 28 132 672 . Parts 208 | . 7 . 201 . Protomatter Decayed 235 | . . 44 191 . Game ------ Seed HeartDisposableNeutralizer Manual? 0 Play Time 00:55:06 Cumulative 127.4 hours Start 2024.10.01 @ 11:27:57 End 2024.10.02 @ 10:00:10 Sessions 3 Manual Loads 0 Difficulty Adventurer Special Mode Winter2019/RPGLIKE Game No. 70 Rogue 0 Adventurer 70 Explorer 0 Win Type - Total 6 Types 2/0/2/2/0/0/0/0/0 Lore% 59 Gallery% 57 Achievement% 71 Wizard Run 0 Options --------- Layout 2 ASCII 0 Keyboard 0 Movement Numpad Keybinds 0 Fullscreen 2 Font 24/Smallcaps Map View 50x44 Zoom Use 0% Tactical HUD 1 Map Filters NONE Filters NONE Steam 1 RUN: e1d25208-0c40-472b-bc74-0e77783fbd5a